fUSD/lending_fUSD_20240406
["ID","MTS","AMOUNT","RATE_DAILY","PERIOD"]
[321685836,1712385077672,-500.0,0.00023599,2]
[321685837,1712385077682,-500.0,0.00023599,2]
[321685838,1712385077693,-500.0,0.00023599,2]
[321685839,1712385077703,-500.0,0.00023599,2]
[321685840,1712385077713,-500.0,0.00023599,2]
[321685841,1712385077724,-500.0,0.00023599,2]
[321685842,1712385077734,-500.0,0.00023599,2]
[321685843,1712385077745,-229.28522858,0.00023599,2]
[321685844,1712385077754,-282.2794273,0.00023599,2]
[321685845,1712385077763,-745.42,0.00023599,2]
[321685846,1712385077773,-745.42,0.00023599,2]
[321685847,1712385077782,-500.0,0.00023599,2]
[321685848,1712385077791,-745.42,0.00023599,2]
[321685849,1712385077803,-500.0,0.00023599,2]
[321685850,1712385077812,-745.42,0.00023599,2]
[321685851,1712385077823,-500.0,0.00023599,2]
[321685852,1712385077832,-500.0,0.00023599,2]
[321685853,1712385077842,-4641.96,0.00023599,2]
[321685854,1712385077853,-323.40811835,0.00023599,2]
[321685855,1712385077862,-4641.96,0.00023599,2]
[321685856,1712385077872,-4641.96,0.00023599,2]
[321685857,1712385077882,-4641.96,0.00023599,2]
[321685858,1712385077892,-500.0,0.00023599,2]
[321685859,1712385077902,-500.0,0.00023599,2]
[321685860,1712385077911,-500.0,0.00023599,2]
[321685861,1712385077920,-500.0,0.00023599,2]
[321685862,1712385077929,-878.59,0.00023599,2]
[321685863,1712385077938,-878.59,0.00023599,2]
[321685864,1712385077948,-878.59,0.00023599,2]
[321685865,1712385077957,-878.59,0.00023599,2]
[321685866,1712385077967,-500.0,0.00023599,2]
[321685867,1712385077976,-856.55,0.00023599,2]
[321685868,1712385077985,-856.55,0.00023599,2]
[321685869,1712385077995,-500.0,0.00023599,2]
[321685870,1712385078006,-856.55,0.00023599,2]
[321685871,1712385078017,-500.0,0.00023599,2]
[321685872,1712385078027,-500.0,0.00023599,2]
[321685873,1712385078035,-500.0,0.00023599,2]
[321685874,1712385078045,-500.0,0.00023599,2]
[321685875,1712385078056,-856.55,0.00023599,2]
[321685876,1712385078066,-500.0,0.00023599,2]
[321685877,1712385078077,-500.0,0.00023599,2]
[321685878,1712385078086,-575.92,0.00023599,2]
[321685879,1712385078095,-575.92,0.00023599,2]
[321685880,1712385078104,-575.92,0.00023599,2]
[321685881,1712385078114,-575.92,0.00023599,2]
[321685882,1712385078124,-3253.94,0.00023599,2]
[321685883,1712385078132,-718.19,0.00023599,2]
[321685884,1712385078141,-3253.94,0.00023599,2]
[321685885,1712385078151,-718.19,0.00023599,2]
[321685886,1712385078160,-3253.94,0.00023599,2]
[321685887,1712385078170,-3253.94,0.00023599,2]
[321685888,1712385078180,-718.19,0.00023599,2]
[321685889,1712385078189,-718.19,0.00023599,2]
[321685890,1712385078198,-963.25,0.00023599,2]
[321685891,1712385078207,-963.25,0.00023599,2]
[321685892,1712385078217,-500.0,0.00023599,2]
[321685893,1712385078226,-963.25,0.00023599,2]
[321685894,1712385078235,-500.0,0.00023599,2]
[321685895,1712385078244,-963.25,0.00023599,2]
[321685896,1712385078257,-500.0,0.00023599,2]
[321685897,1712385078266,-500.0,0.00023599,2]
[321685898,1712385078275,-548791.78506455,0.000236,2]
[321685899,1712385079356,-271.809001,0.00023589,2]
[321685900,1712385079385,-228.190999,0.00023589,2]
[321685901,1712385079395,-500.76711426,0.0002359,2]
[321685902,1712385079406,-140.58040277,0.00023596,2]
[321685903,1712385079431,-124.81067626,0.00023596,2]
[321685904,1712385079440,-500.0,0.00023598,2]
[321685905,1712385079449,-7.09730574,0.00023598,2]
[321685906,1712385079471,-713.94269426,0.00023598,2]
[321685907,1712385079480,-373.34730574,0.00023598,2]
[321685908,1712385080018,-500.0,0.00023589,2]
[321685909,1712385080027,-392.16,0.00023596,2]
[321685910,1712385080037,-126.65269426,0.00023598,2]
[321685911,1712385080046,-500.0,0.00023598,2]
[321685912,1712385080055,-721.04,0.00023598,2]
[321685913,1712385080064,-721.04,0.00023598,2]
[321685914,1712385080074,-500.0,0.00023598,2]
[321685915,1712385080083,-721.04,0.00023598,2]
[321685916,1712385080092,-500.0,0.00023598,2]
[321685917,1712385080102,-500.0,0.00023598,2]
[321685918,1712385080111,-500.0,0.00023598,2]
[321685919,1712385080121,-500.0,0.00023599,2]
[321685920,1712385080130,-348.87109827,0.00023599,2]
[321685921,1712385080398,-836.23723852,0.00023499,2]
[321685922,1712385080407,-500.0,0.0002359,2]
[321685923,1712385080417,-43.36451271,0.00023598,2]
[321685924,1712385080429,-459.01217481,0.00023598,2]
[321685925,1712385080439,-151.12890173,0.00023599,2]
[321685926,1712385080449,-500.0,0.00023599,2]
[321685927,1712385080458,-500.0,0.00023599,2]
[321685928,1712385080467,-721.04,0.00023599,2]
[321685929,1712385080477,-161.93893267,0.00023599,2]
[321685930,1712385080489,-413.6125644,0.00023599,2]
[321685931,1712385080502,-145.48850293,0.00023599,2]
[321685932,1712385080511,-281.11372919,0.00023599,2]
[321685933,1712385080527,-272.0983321,0.00023599,2]
[321685934,1712385080539,-167.82793871,0.00023599,2]
[321685935,1712385080548,-500.0,0.00023599,2]
[321685936,1712385080558,-122.29650004,0.00023599,2]
[321685937,1712385080569,-598.74349996,0.00023599,2]
[321685938,1712385080579,-500.0,0.00023599,2]
[321685939,1712385080588,-500.0,0.00023599,2]
[321685940,1712385080597,-500.0,0.00023599,2]
[321685941,1712385080607,-40346.40611553,0.000236,2]
[321685944,1712385269210,500.0,0.0002721,30]
[321685945,1712385303764,238.32,0.00020719,2]
[321685946,1712385313787,500.0,0.0002721,30]
[321685948,1712385556704,-609.6,0.00022616,2]
[321685949,1712385556726,-214.53,0.00022654,2]
[321685950,1712385556749,-238.32,0.00022983,2]
[321685951,1712385573100,-1471.08977005,0.00023033,2]
[321685952,1712385573121,-424.21943,0.0002336,2]
[321685953,1712385573142,-1592.18685099,0.000234,2]
[321685954,1712385573164,-1471.08977005,0.0002345,2]
[321685955,1712385573185,-463.633,0.0002349,2]
[321685956,1712385573206,-460.8838716,0.00023497,2]
[321685957,1712385573226,-4405.6955444,0.00023499,2]
[321685958,1712385573246,-5829.7767,0.000235,2]
[321685959,1712385573266,-39929.6927,0.000235,2]
[321685960,1712385573287,-872.67951352,0.000235,2]
[321685962,1712385710194,-10321.87948821,0.00023489,2]
[321685963,1712385710214,-430.15828016,0.00023496,2]
[321685964,1712385710235,-159.30049202,0.00023498,2]
[321685965,1712385710255,-99127.32048648,0.000235,2]
[321685966,1712385710277,-500.0,0.000235,2]
[321685967,1712385710296,-779.7272,0.000235,2]
[321685968,1712385710316,-1471.08977005,0.00023528,2]
[321685969,1712385710337,-1592.18685091,0.00023567,2]
[321685970,1712385710367,-500.0,0.00023588,2]
[321685971,1712385710391,-569.99,0.00023588,2]
[321685972,1712385710412,-500.0,0.00023588,2]
[321685973,1712385710435,-500.0,0.00023588,2]
[321685974,1712385710456,-500.0,0.00023588,2]
[321685975,1712385710477,-500.0,0.00023588,2]
[321685976,1712385710497,-370.59977304,0.00023588,2]
[321685977,1712385710522,-500.0,0.00023588,2]
[321685978,1712385710542,-473.27320067,0.00023588,2]
[321685979,1712385710563,-500.0,0.00023588,2]
[321685980,1712385710593,-500.0,0.00023588,2]
[321685981,1712385710640,-500.0,0.00023588,2]
[321685982,1712385710684,-500.0,0.00023588,2]
[321685983,1712385710732,-500.0,0.00023588,2]
[321685984,1712385710777,-637.79,0.00023588,2]
[321685985,1712385710798,-545.60418595,0.00023588,2]
[321685986,1712385710820,-2513.96,0.00023588,2]
[321685987,1712385710841,-500.0,0.00023588,2]
[321685988,1712385710862,-500.0,0.00023588,2]
[321685989,1712385710882,-511.32430265,0.00023588,2]
[321685990,1712385710903,-753.66,0.00023588,2]
[321685991,1712385710924,-736.52,0.00023588,2]
[321685992,1712385710944,-500.0,0.00023588,2]
[321685993,1712385710968,-500.0,0.00023588,2]
[321685994,1712385710988,-371.34097874,0.00023588,2]
[321685995,1712385711009,-1222.22,0.00023588,2]
[321685996,1712385711030,-510.85,0.00023588,2]
[321685997,1712385711051,-500.0,0.00023588,2]
[321685998,1712385711072,-649.14,0.00023588,2]
[321685999,1712385711095,-544.22905221,0.00023588,2]
[321686000,1712385711116,-2128.57,0.00023588,2]
[321686001,1712385711137,-505.19,0.00023588,2]
[321686002,1712385711158,-500.0,0.00023588,2]
[321686003,1712385711178,-500.0,0.00023588,2]
[321686004,1712385711199,-500.0,0.00023588,2]
[321686005,1712385711219,-500.0,0.00023588,2]
[321686006,1712385711240,-1528.37,0.00023588,2]
[321686007,1712385711261,-484.99474478,0.00023589,2]
[321686008,1712385711285,-522.16210768,0.00023589,2]
[321686009,1712385711306,-500.0,0.00023589,2]
[321686010,1712385711327,-500.0,0.00023589,2]
[321686011,1712385711348,-500.0,0.00023589,2]
[321686012,1712385711368,-504.71899798,0.00023589,2]
[321686013,1712385711388,-500.0,0.00023589,2]
[321686014,1712385711408,-517.48757604,0.00023589,2]
[321686015,1712385711431,-503.09399385,0.00023589,2]
[321686016,1712385711453,-489.03452335,0.00023589,2]
[321686017,1712385711476,-517.43124507,0.00023589,2]
[321686018,1712385711497,-517.99796269,0.00023589,2]
[321686019,1712385711519,-500.0,0.00023589,2]
[321686020,1712385711539,-500.0,0.00023589,2]
[321686021,1712385711559,-500.0,0.00023589,2]
[321686022,1712385711579,-500.0,0.00023589,2]
[321686023,1712385711604,-532.30493299,0.00023589,2]
[321686024,1712385711624,-500.0,0.00023589,2]
[321686025,1712385711646,-500.0,0.00023589,2]
[321686026,1712385711666,-473.44565319,0.00023589,2]
[321686027,1712385711687,-500.0,0.00023589,2]
[321686028,1712385711708,-509.79591735,0.00023589,2]
[321686029,1712385711730,-547.04202758,0.00023589,2]
[321686030,1712385711751,-500.0,0.00023589,2]
[321686031,1712385711772,-500.0,0.00023589,2]
[321686032,1712385711792,-511.89705758,0.00023589,2]
[321686033,1712385711813,-500.0,0.00023589,2]
[321686034,1712385712105,-2204.38,0.00023589,2]
[321686035,1712385712128,-500.0,0.00023589,2]
[321686036,1712385712150,-500.0,0.00023589,2]
[321686037,1712385712171,-500.0,0.00023589,2]
[321686038,1712385712192,-500.0,0.00023589,2]
[321686039,1712385712212,-513.44824149,0.00023589,2]
[321686040,1712385712232,-502.39563952,0.00023589,2]
[321686041,1712385712252,-500.0,0.00023589,2]
[321686042,1712385712272,-500.0,0.00023589,2]
[321686043,1712385712291,-500.0,0.00023589,2]
[321686044,1712385712311,-500.0,0.00023589,2]
[321686045,1712385712331,-500.0,0.00023589,2]
[321686046,1712385712350,-598.52045508,0.00023589,2]
[321686047,1712385712370,-500.0,0.00023589,2]
[321686048,1712385712390,-529.59680178,0.00023589,2]
[321686049,1712385712410,-500.0,0.00023589,2]
[321686050,1712385712430,-500.0,0.00023589,2]
[321686051,1712385712450,-524.01852971,0.00023589,2]
[321686052,1712385712469,-220.84330672,0.00023589,2]
[321686053,1712385712489,-601.79273737,0.00023589,2]
[321686054,1712385712510,-500.0,0.00023589,2]
[321686055,1712385712530,-500.0,0.00023589,2]
[321686056,1712385712549,-500.0,0.00023589,2]
[321686057,1712385712568,-500.0,0.00023589,2]
[321686058,1712385712588,-500.0,0.00023589,2]
[321686059,1712385712615,-500.0,0.00023589,2]
[321686060,1712385712658,-500.0,0.00023589,2]
[321686061,1712385712700,-500.0,0.00023589,2]
[321686062,1712385712743,-311.41819,0.00023589,2]
[321686063,1712385712787,-527.8796594,0.00023589,2]
[321686064,1712385712814,-500.0,0.00023589,2]
[321686065,1712385712834,-500.0,0.00023589,2]
[321686066,1712385712854,-500.0,0.00023589,2]
[321686067,1712385712874,-500.0,0.00023589,2]
[321686068,1712385712893,-500.0,0.00023589,2]
[321686069,1712385712912,-500.0,0.00023589,2]
[321686070,1712385712932,-500.0,0.00023589,2]
[321686071,1712385712952,-500.0,0.00023589,2]
[321686072,1712385712971,-500.0,0.00023589,2]
[321686073,1712385712991,-500.0,0.00023589,2]
[321686074,1712385713011,-500.0,0.00023589,2]
[321686075,1712385713031,-504.32075155,0.00023589,2]
[321686076,1712385713051,-500.0,0.00023589,2]
[321686077,1712385713070,-500.0,0.00023589,2]
[321686078,1712385713090,-524.23034923,0.00023589,2]
[321686079,1712385713109,-500.0,0.00023589,2]
[321686080,1712385713132,-500.0,0.00023589,2]
[321686081,1712385713152,-500.0,0.00023589,2]
[321686082,1712385713171,-500.0,0.00023589,2]
[321686083,1712385713191,-500.0,0.00023589,2]
[321686084,1712385713211,-500.0,0.00023589,2]
[321686085,1712385713231,-500.0,0.00023589,2]
[321686086,1712385713251,-500.0,0.00023589,2]
[321686087,1712385713270,-500.0,0.00023589,2]
[321686088,1712385713291,-500.0,0.00023589,2]
[321686089,1712385713313,-500.0,0.00023589,2]
[321686090,1712385713335,-525.66794068,0.00023589,2]
[321686091,1712385713355,-500.0,0.00023589,2]
[321686092,1712385713377,-500.0,0.00023589,2]
[321686093,1712385713397,-500.0,0.00023589,2]
[321686094,1712385713424,-500.0,0.00023589,2]
[321686095,1712385713445,-500.0,0.00023589,2]
[321686096,1712385713468,-500.0,0.00023589,2]
[321686097,1712385713489,-528.23918647,0.00023589,2]
[321686098,1712385713511,-545.4,0.00023589,2]
[321686099,1712385713531,-500.0,0.00023589,2]
[321686100,1712385713553,-500.0,0.00023589,2]
[321686101,1712385713575,-500.0,0.00023589,2]
[321686102,1712385713597,-500.0,0.00023589,2]
[321686103,1712385713618,-500.0,0.00023589,2]
[321686104,1712385713641,-500.0,0.00023589,2]
[321686105,1712385713663,-556.03,0.00023589,2]
[321686106,1712385713686,-500.0,0.00023589,2]
[321686107,1712385713707,-500.0,0.00023589,2]
[321686108,1712385713730,-500.0,0.00023589,2]
[321686109,1712385713752,-500.0,0.00023589,2]
[321686110,1712385713776,-500.0,0.00023589,2]
[321686111,1712385713797,-500.0,0.00023589,2]
[321686112,1712385713819,-546.9166454,0.00023589,2]
[321686113,1712385713840,-500.0,0.00023589,2]
[321686114,1712385713863,-500.0,0.00023589,2]
[321686115,1712385713888,-500.0,0.00023589,2]
[321686116,1712385713909,-500.0,0.00023589,2]
[321686117,1712385713929,-500.0,0.00023589,2]
[321686118,1712385713948,-500.0,0.00023589,2]
[321686119,1712385713969,-500.0,0.00023589,2]
[321686120,1712385713993,-500.0,0.00023589,2]
[321686121,1712385714016,-500.0,0.00023589,2]
[321686122,1712385714036,-606.11652843,0.00023589,2]
[321686123,1712385714058,-528.06767686,0.00023589,2]
[321686124,1712385714078,-500.0,0.00023589,2]
[321686125,1712385714099,-500.0,0.00023589,2]
[321686126,1712385714119,-500.0,0.00023589,2]
[321686127,1712385714141,-500.0,0.00023589,2]
[321686128,1712385714162,-500.0,0.00023589,2]
[321686129,1712385714184,-500.0,0.00023589,2]
[321686130,1712385714205,-500.0,0.00023589,2]
[321686131,1712385714226,-500.0,0.00023589,2]
[321686132,1712385714248,-500.0,0.00023589,2]
[321686133,1712385714272,-794.26,0.00023589,2]
[321686134,1712385714293,-512.69609792,0.00023589,2]
[321686135,1712385714315,-500.0,0.00023589,2]
[321686136,1712385714337,-2320.98,0.00023589,2]
[321686137,1712385714357,-500.0,0.00023589,2]
[321686138,1712385714377,-500.0,0.00023589,2]
[321686139,1712385714397,-500.0,0.00023589,2]
[321686140,1712385714418,-500.0,0.00023589,2]
[321686141,1712385714441,-500.0,0.00023589,2]
[321686142,1712385714461,-500.0,0.00023589,2]
[321686143,1712385714481,-518.121955,0.00023589,2]
[321686144,1712385714503,-500.0,0.00023589,2]
[321686145,1712385714524,-511.36492973,0.00023589,2]
[321686146,1712385714544,-500.0,0.00023589,2]
[321686147,1712385714564,-593.08,0.00023589,2]
[321686148,1712385714584,-500.0,0.00023589,2]
[321686149,1712385714605,-535.35,0.00023589,2]
[321686150,1712385714625,-1626.97,0.00023589,2]
[321686151,1712385714645,-500.0,0.00023589,2]
[321686152,1712385714665,-602.03,0.00023589,2]
[321686153,1712385714686,-500.0,0.00023589,2]
[321686154,1712385714708,-757.68,0.00023589,2]
[321686155,1712385714730,-500.0,0.00023589,2]
[321686156,1712385714752,-500.0,0.00023589,2]
[321686157,1712385714776,-500.0,0.00023589,2]
[321686158,1712385714799,-500.0,0.00023589,2]
[321686159,1712385714824,-500.0,0.00023589,2]
[321686160,1712385714848,-500.0,0.00023589,2]
[321686161,1712385714870,-500.0,0.00023589,2]
[321686162,1712385714892,-500.0,0.00023589,2]
[321686163,1712385714913,-500.0,0.00023589,2]
[321686164,1712385714934,-2240.85,0.00023589,2]
[321686165,1712385714954,-500.0,0.00023589,2]
[321686166,1712385714976,-510.93,0.00023589,2]
[321686167,1712385714997,-639.32,0.00023589,2]
[321686168,1712385715019,-500.0,0.00023589,2]
[321686169,1712385715040,-500.0,0.00023589,2]
[321686170,1712385715062,-2502.72,0.00023589,2]
[321686171,1712385715083,-500.0,0.00023589,2]
[321686172,1712385715103,-500.0,0.00023589,2]
[321686173,1712385715124,-500.0,0.00023589,2]
[321686174,1712385715146,-500.0,0.00023589,2]
[321686175,1712385715167,-6998.16,0.00023589,2]
[321686176,1712385715187,-500.0,0.00023589,2]
[321686177,1712385715208,-500.0,0.00023589,2]
[321686178,1712385715229,-500.0,0.00023589,2]
[321686179,1712385715250,-500.0,0.00023589,2]
[321686180,1712385715274,-605.86164426,0.00023589,2]
[321686181,1712385715298,-500.0,0.00023589,2]
[321686182,1712385715320,-500.0,0.00023589,2]
[321686183,1712385715342,-500.0,0.00023589,2]
[321686184,1712385715362,-500.0,0.00023589,2]
[321686185,1712385715382,-298.47513017,0.00023589,2]
[321686186,1712385715402,-500.0,0.00023589,2]
[321686187,1712385715425,-580.72056987,0.00023589,2]
[321686188,1712385715449,-557.86,0.00023589,2]
[321686189,1712385715471,-762.49,0.00023589,2]
[321686190,1712385715490,-753.93,0.00023589,2]
[321686191,1712385715513,-500.0,0.00023589,2]
[321686192,1712385715535,-500.0,0.00023589,2]
[321686193,1712385715557,-500.0,0.00023589,2]
[321686194,1712385715578,-500.0,0.00023589,2]
[321686195,1712385715599,-674.05,0.00023589,2]
[321686196,1712385715620,-500.0,0.00023589,2]
[321686197,1712385715642,-500.0,0.00023589,2]
[321686198,1712385715665,-519.21188956,0.00023589,2]
[321686199,1712385715686,-697.6,0.00023589,2]
[321686200,1712385715707,-500.0,0.00023589,2]
[321686201,1712385715727,-500.0,0.00023589,2]
[321686202,1712385715747,-603.73,0.00023589,2]
[321686203,1712385715768,-500.0,0.00023589,2]
[321686204,1712385715789,-500.0,0.00023589,2]
[321686205,1712385715810,-1515.87,0.00023589,2]
[321686206,1712385715831,-500.0,0.00023589,2]
[321686207,1712385715852,-500.0,0.00023589,2]
[321686208,1712385715873,-500.0,0.00023589,2]
[321686209,1712385715894,-500.0,0.00023589,2]
[321686210,1712385715914,-500.0,0.00023589,2]
[321686211,1712385715935,-500.0,0.00023589,2]
[321686212,1712385715957,-500.0,0.00023589,2]
[321686213,1712385715980,-500.0,0.00023589,2]
[321686214,1712385716166,-1189.16,0.00023589,2]
[321686215,1712385716188,-500.0,0.00023589,2]
[321686216,1712385716210,-3248.31,0.00023589,2]
[321686217,1712385716231,-500.0,0.00023589,2]
[321686218,1712385716252,-500.0,0.00023589,2]
[321686219,1712385716274,-536.87,0.00023589,2]
[321686220,1712385716294,-500.0,0.00023589,2]
[321686221,1712385716317,-500.0,0.00023589,2]
[321686222,1712385716339,-509.7,0.00023589,2]
[321686223,1712385716359,-1032.28,0.00023589,2]
[321686224,1712385716380,-568.30908829,0.00023589,2]
[321686225,1712385716401,-1546.35,0.00023589,2]
[321686226,1712385716422,-1265.7,0.00023589,2]
[321686227,1712385716447,-1009.83,0.00023589,2]
[321686228,1712385716469,-500.0,0.00023589,2]
[321686229,1712385716489,-500.0,0.00023589,2]
[321686230,1712385716510,-614.44,0.00023589,2]
[321686231,1712385716532,-645.35,0.00023589,2]
[321686232,1712385716555,-500.0,0.00023589,2]
[321686233,1712385716575,-1719.75,0.00023589,2]
[321686234,1712385716595,-500.0,0.00023589,2]
[321686235,1712385716615,-500.0,0.00023589,2]
[321686236,1712385716636,-500.0,0.00023589,2]
[321686237,1712385716657,-798.29,0.00023589,2]
[321686238,1712385716681,-477.7974336,0.00023589,2]
[321686239,1712385716704,-500.0,0.00023589,2]
[321686240,1712385716724,-522.24774957,0.00023589,2]
[321686241,1712385716743,-500.0,0.00023589,2]
[321686242,1712385716767,-365.62632161,0.00023589,2]
[321686243,1712385716789,-515.15,0.00023589,2]
[321686244,1712385716811,-500.0,0.00023589,2]
[321686245,1712385716832,-500.95720212,0.0002359,2]
[321686246,1712385716853,-500.0,0.0002359,2]
[321686247,1712385716874,-501.12274675,0.0002359,2]
[321686248,1712385716894,-500.0,0.0002359,2]
[321686249,1712385716918,-500.0,0.0002359,2]
[321686250,1712385716939,-518.29568372,0.0002359,2]
[321686251,1712385716960,-502.99002743,0.0002359,2]
[321686252,1712385716982,-502.98728871,0.0002359,2]
[321686253,1712385717002,-503.76874852,0.0002359,2]
[321686254,1712385717025,-500.0,0.0002359,2]
[321686255,1712385717044,-500.0,0.0002359,2]
[321686256,1712385717065,-509.70255441,0.0002359,2]
[321686257,1712385717085,-500.0,0.0002359,2]
[321686258,1712385717106,-508.41723153,0.0002359,2]
[321686259,1712385717127,-466.5409373,0.0002359,2]
[321686260,1712385717148,-388.51829346,0.0002359,2]
[321686261,1712385717168,-538.93986295,0.0002359,2]
[321686262,1712385717191,-520.48,0.0002359,2]
[321686263,1712385717212,-500.0,0.0002359,2]
[321686264,1712385717232,-399.17718897,0.0002359,2]
[321686265,1712385717252,-500.0,0.0002359,2]
[321686266,1712385717273,-312.30758997,0.0002359,2]
[321686267,1712385717294,-500.0,0.0002359,2]
[321686268,1712385717314,-500.0,0.0002359,2]
[321686269,1712385717335,-500.0,0.0002359,2]
[321686270,1712385717355,-500.0,0.0002359,2]
[321686271,1712385717374,-447.15390421,0.0002359,2]
[321686272,1712385717393,-500.0,0.0002359,2]
[321686273,1712385717414,-500.0,0.00023594,2]
[321686274,1712385717434,-523.65,0.00023594,2]
[321686275,1712385717455,-500.0,0.00023594,2]
[321686276,1712385717476,-988.18,0.00023594,2]
[321686277,1712385717496,-500.0,0.00023594,2]
[321686278,1712385717520,-636.89,0.00023594,2]
[321686279,1712385717541,-6044.73,0.00023594,2]
[321686280,1712385717561,-719.65,0.00023594,2]
[321686281,1712385717581,-520.48,0.00023595,2]
[321686282,1712385717603,-500.0,0.00023595,2]
[321686283,1712385717628,-500.0,0.00023595,2]
[321686284,1712385717650,-500.0,0.00023595,2]
[321686285,1712385717671,-500.0,0.00023595,2]
[321686286,1712385717696,-500.0,0.00023595,2]
[321686287,1712385717717,-500.0,0.00023595,2]
[321686288,1712385717738,-500.0,0.00023596,2]
[321686289,1712385717760,-500.0,0.00023596,2]
[321686290,1712385717782,-520.33949254,0.00023596,2]
[321686291,1712385717801,-553.08617252,0.00023596,2]
[321686292,1712385717822,-260.81466155,0.00023596,2]
[321686293,1712385717841,-501.78447301,0.00023596,2]
[321686294,1712385717861,-500.0,0.00023596,2]
[321686295,1712385717881,-500.0,0.00023596,2]
[321686296,1712385717902,-500.0,0.00023596,2]
[321686297,1712385717921,-564.24407275,0.00023596,2]
[321686298,1712385717941,-500.0,0.00023596,2]
[321686299,1712385717961,-2204.38,0.00023596,2]
[321686300,1712385717981,-640.55503323,0.00023596,2]
[321686301,1712385718001,-500.0,0.00023596,2]
[321686302,1712385718021,-568.50669219,0.00023596,2]
[321686303,1712385718041,-500.0,0.00023596,2]
[321686304,1712385718060,-232.4298004,0.00023596,2]
[321686305,1712385718080,-500.0,0.00023596,2]
[321686306,1712385718100,-500.0,0.00023596,2]
[321686307,1712385718120,-500.0,0.00023596,2]
[321686308,1712385718140,-500.0,0.00023596,2]
[321686309,1712385718160,-500.0,0.00023596,2]
[321686310,1712385718180,-500.0,0.00023596,2]
[321686311,1712385718200,-500.0,0.00023596,2]
[321686312,1712385718221,-564.24198287,0.00023596,2]
[321686313,1712385718240,-500.0,0.00023596,2]
[321686314,1712385718260,-466.45409883,0.00023596,2]
[321686315,1712385718283,-500.0,0.00023596,2]
[321686316,1712385718304,-500.0,0.00023596,2]
[321686317,1712385718325,-500.0,0.00023596,2]
[321686318,1712385718346,-500.0,0.00023596,2]
[321686319,1712385718366,-591.72549471,0.00023596,2]
[321686320,1712385718390,-521.7673879,0.00023596,2]
[321686321,1712385718413,-297.26009784,0.00023596,2]
[321686322,1712385718435,-500.0,0.00023596,2]
[321686323,1712385718456,-260.50202148,0.00023596,2]
[321686324,1712385718478,-598.04307063,0.00023596,2]
[321686325,1712385718503,-166.8033887,0.00023596,2]
[321686326,1712385718525,-500.0,0.00023596,2]
[321686327,1712385718545,-500.0,0.00023596,2]
[321686328,1712385718568,-500.0,0.00023596,2]
[321686329,1712385718590,-500.0,0.00023596,2]
[321686330,1712385718613,-500.0,0.00023596,2]
[321686331,1712385718635,-500.0,0.00023596,2]
[321686332,1712385718657,-500.0,0.00023596,2]
[321686333,1712385718677,-500.0,0.00023596,2]
[321686334,1712385718698,-500.0,0.00023596,2]
[321686335,1712385718718,-588.50194629,0.00023596,2]
[321686336,1712385718737,-521.9486094,0.00023596,2]
[321686337,1712385718758,-500.0,0.00023596,2]
[321686338,1712385718777,-178.48032118,0.00023596,2]
[321686339,1712385718798,-500.0,0.00023596,2]